bitfinex-derivatives/quotes_BTCF0:USTF0_20250905
["timestamp","ask_amount","ask_price","bid_price","bid_amount"]
[1757082930455,2.21220785,110810.0,110800.0,0.00414]
[1757082930858,2.67292834,110810.0,110770.0,4e-05]
[1757082931058,0.82152049,110780.0,110770.0,4e-05]
[1757082931259,0.3608,110780.0,110770.0,4e-05]
[1757082931558,0.3608,110780.0,110770.0,0.02886]
[1757082931761,0.82152049,110780.0,110770.0,4e-05]
[1757082932146,1.07152049,110780.0,110770.0,0.00604]
[1757082932352,1.07152049,110780.0,110750.0,0.01]
[1757082932353,1.53224098,110780.0,110750.0,0.01]
[1757082932556,0.271,110780.0,110770.0,0.002]
[1757082932760,0.9726,110780.0,110770.0,0.002]
[1757082933062,0.8628643,110780.0,110770.0,0.002]
[1757082933251,0.5020643,110780.0,110770.0,0.002]
[1757082933447,0.4520643,110780.0,110770.0,0.002]
[1757082933656,1.1828643,110780.0,110770.0,0.002]
[1757082933858,1.27358479,110780.0,110770.0,0.002]
[1757082934057,1.28058479,110780.0,110770.0,0.003]
[1757082934353,1.28058479,110780.0,110770.0,0.253]
[1757082934553,1.28058479,110780.0,110770.0,0.003]
[1757082934858,1.8936243,110780.0,110770.0,0.001]
[1757082935252,0.1032643,110780.0,110770.0,0.27982]
[1757082935451,0.013,110780.0,110770.0,0.74054049]
[1757082935648,0.006,110780.0,110770.0,0.64062]
[1757082935858,0.013,110780.0,110770.0,0.64162]
[1757082936059,1.90324049,110780.0,110770.0,0.002]
[1757082936256,0.3738,110780.0,110770.0,0.002]
[1757082936460,0.3738,110780.0,110770.0,0.28082]
[1757082936958,0.006,110780.0,110770.0,0.27882]
[1757082937158,1.63100785,110810.0,110780.0,0.02882]
[1757082937359,0.3608,110810.0,110800.0,0.02882]
[1757082937863,1.07152049,110810.0,110780.0,0.02882]
[1757082938161,0.005,110780.0,110770.0,0.02982]
[1757082938360,0.46572049,110780.0,110770.0,0.001]
[1757082938560,0.005,110780.0,110770.0,0.001]
[1757082938763,0.53868656,110780.0,110770.0,0.001]
[1757082938963,0.3658,110780.0,110770.0,0.001]
[1757082939152,0.005,110780.0,110770.0,0.001]
[1757082939355,0.005,110780.0,110770.0,0.39062]
[1757082939557,0.005,110780.0,110770.0,1.19061249]
[1757082939759,0.005,110780.0,110770.0,1.10034049]
[1757082940163,0.82552049,110810.0,110800.0,0.02882]
[1757082940164,0.004,110810.0,110800.0,0.02882]
[1757082940460,0.82152049,110820.0,110800.0,0.02882]
[1757082940656,0.3608,110810.0,110800.0,0.02882]
[1757082940965,0.005,110810.0,110800.0,0.39062]
[1757082941161,0.0952442,110810.0,110800.0,0.39062]
[1757082941463,0.91576469,110810.0,110800.0,0.001]
[1757082941855,0.91576469,110810.0,110800.0,0.002]
[1757082942056,0.0942442,110810.0,110800.0,0.28082]
[1757082942255,0.0942442,110810.0,110800.0,0.03082]
[1757082942561,0.0942442,110810.0,110800.0,0.39162]
[1757082942760,0.0942442,110810.0,110800.0,0.64162]
[1757082943063,0.3678,110810.0,110800.0,0.002]
[1757082943263,1.4364,110810.0,110800.0,0.002]
[1757082943456,0.82852049,110810.0,110800.0,0.002]
[1757082943761,1.89008049,110810.0,110800.0,0.001]
[1757082943956,2.14408049,110810.0,110800.0,0.002]
[1757082944155,2.14408049,110810.0,110800.0,0.001]
[1757082944464,1.07852049,110810.0,110800.0,0.001]
[1757082944665,1.68632,110810.0,110800.0,0.001]
[1757082944966,0.6178,110810.0,110800.0,0.001]
[1757082945158,0.6188,110810.0,110800.0,0.001]
[1757082945463,1.68724,110810.0,110760.0,0.02892]
[1757082945651,0.3608,110770.0,110740.0,0.0001]
[1757082945856,0.7216,110750.0,110720.0,0.02973]
[1757082946057,0.82152049,110740.0,110730.0,0.02973]
[1757082946253,1.18232049,110740.0,110730.0,0.02973]
[1757082946960,1.43232049,110740.0,110700.0,0.02977]
[1757082947162,0.7216,110710.0,110700.0,0.02977]
[1757082947357,0.7206,110710.0,110700.0,0.02977]
[1757082947761,0.3598,110710.0,110700.0,0.02977]
[1757082948059,1.18132049,110710.0,110700.0,0.02977]
[1757082948263,1.18032049,110710.0,110700.0,0.02977]
[1757082948764,1.18032049,110710.0,110700.0,4e-05]
[1757082948960,0.8099203,110710.0,110700.0,4e-05]
[1757082949465,1.27064079,110710.0,110700.0,0.01413631]
[1757082949656,1.27064079,110710.0,110700.0,0.01423631]
[1757082950362,1.27164079,110710.0,110700.0,0.01623631]
[1757082950564,1.27164079,110710.0,110700.0,0.00214]
[1757082950755,0.8109203,110710.0,110700.0,0.00214]
[1757082950956,1.27164079,110710.0,110700.0,0.00414]
[1757082951455,1.27094605,110710.0,110700.0,0.00414]
[1757082951665,1.52094605,110710.0,110700.0,0.01826258]
[1757082952165,1.52094605,110710.0,110700.0,0.00062]
[1757082952357,2.58938605,110710.0,110700.0,0.00062]
[1757082952552,1.27094605,110710.0,110700.0,0.00062]
[1757082952758,2.33938605,110710.0,110700.0,0.01470722]
[1757082952956,0.8109203,110710.0,110700.0,0.28035]
[1757082953362,1.26994605,110710.0,110700.0,0.04433201]
[1757082953563,1.27194605,110710.0,110700.0,0.01553963]
[1757082953763,2.34038605,110710.0,110700.0,0.00162]
[1757082954061,2.59038605,110710.0,110700.0,0.0155544]
[1757082954272,2.59038605,110710.0,110700.0,0.00162]
[1757082954858,2.59038605,110710.0,110700.0,0.001]
[1757082954859,1.52294605,110710.0,110700.0,0.001]
[1757082955267,2.59134605,110710.0,110700.0,0.01512327]
[1757082955453,1.27294605,110710.0,110700.0,0.01512327]
[1757082955960,0.8129203,110710.0,110700.0,0.29485327]
[1757082956160,1.27294605,110710.0,110700.0,0.26512327]
[1757082956859,0.8129203,110710.0,110700.0,0.01512327]
[1757082957058,1.27294605,110710.0,110700.0,0.01512327]
[1757082957259,1.27294605,110710.0,110700.0,0.001]
[1757082957768,2.34134605,110710.0,110700.0,0.001]
[1757082958063,2.34130605,110710.0,110700.0,0.001]
[1757082958264,1.27294605,110710.0,110700.0,0.001]
[1757082958452,2.34134605,110710.0,110700.0,0.001]
[1757082958657,1.8813203,110710.0,110700.0,0.001]
[1757082958856,2.34130605,110710.0,110700.0,0.001]
[1757082959458,0.8129203,110710.0,110700.0,0.001]
[1757082959665,0.8129203,110710.0,110700.0,0.03073]
[1757082959866,0.8129203,110710.0,110700.0,0.28073]
[1757082960068,1.8812403,110710.0,110700.0,0.28073]
[1757082960267,0.8129203,110710.0,110700.0,0.28073]
[1757082960470,0.7226,110710.0,110700.0,0.28073]
[1757082961064,0.3608,110730.0,110710.0,0.0903197]
[1757082961360,0.3608,110730.0,110720.0,0.02973]
[1757082961763,0.40716979,110740.0,110720.0,0.27973]
[1757082961960,0.3608,110730.0,110720.0,0.27973]
[1757082962360,0.3628,110730.0,110720.0,0.02973]
[1757082962665,0.3628,110730.0,110720.0,0.27973]
[1757082962865,0.3668,110730.0,110720.0,0.28073]
[1757082963570,0.006,110730.0,110720.0,0.74137923]
[1757082963769,0.006,110730.0,110720.0,1.20140498]
[1757082963965,0.0913033,110730.0,110720.0,0.65106783]
[1757082964270,0.04636979,110740.0,110730.0,0.1200333]
[1757082964574,0.42273372,110760.0,110750.0,0.02973]
[1757082964772,0.3608,110760.0,110750.0,0.10279528]
[1757082964968,0.3608,110760.0,110750.0,0.90310803]
[1757082965265,0.13639144,110790.0,110780.0,0.02973]
[1757082965266,0.40692974,110790.0,110780.0,0.02973]
[1757082965471,0.04612974,110790.0,110780.0,0.73975575]
[1757082965776,0.06193372,110800.0,110790.0,0.02973]
[1757082966166,0.06193372,110800.0,110780.0,0.02973]
[1757082966167,0.42273372,110800.0,110780.0,0.02973]
[1757082966661,0.39265,110790.0,110760.0,1.77537]
[1757082966861,0.3678,110790.0,110780.0,0.02973]
[1757082967064,0.007,110790.0,110770.0,0.02973]
[1757082967372,0.3608,110790.0,110780.0,0.02973]
[1757082967563,0.3608,110790.0,110780.0,0.03173]
[1757082967758,0.3608,110790.0,110780.0,0.002]
[1757082967971,1.07082575,110790.0,110780.0,0.002]
[1757082968270,0.3628,110790.0,110780.0,0.74175575]
[1757082968458,0.3628,110790.0,110780.0,0.03173]
[1757082968664,0.3628,110790.0,110780.0,0.28173]
[1757082968870,0.3608,110790.0,110780.0,0.03173]
[1757082969065,1.07082575,110790.0,110780.0,0.002]
[1757082969272,0.6108,110790.0,110780.0,0.003]
[1757082969569,0.6108,110790.0,110780.0,0.001]
[1757082969766,1.07782575,110790.0,110780.0,0.002]
[1757082969973,1.09571575,110790.0,110780.0,0.002]
[1757082970361,2.15619575,110790.0,110780.0,0.001]
[1757082970567,0.02985,110780.0,110740.0,0.02983]
[1757082970762,0.3608,110760.0,110740.0,0.02973]
[1757082970969,0.0001,110770.0,110760.0,0.02973]
[1757082971174,0.3609,110780.0,110770.0,0.02973]
[1757082971372,0.3629,110790.0,110780.0,0.02973]
[1757082971569,0.3628,110790.0,110780.0,0.02983]
[1757082971766,0.002,110790.0,110780.0,0.02983]
[1757082971963,0.4530572,110790.0,110780.0,0.27983]
[1757082972364,0.4530572,110790.0,110780.0,0.0001]
[1757082972671,1.16108295,110790.0,110780.0,0.0001]
[1757082973176,0.7010572,110790.0,110780.0,0.0001]
[1757082973379,0.4510572,110790.0,110780.0,0.0011]
[1757082973569,0.7020572,110790.0,110780.0,0.0011]
[1757082973973,1.16208295,110790.0,110780.0,0.0011]
[1757082974872,1.16208295,110790.0,110740.0,0.07087507]
[1757082975070,0.3608,110760.0,110740.0,0.07077507]
[1757082975272,0.3608,110760.0,110730.0,0.90530575]
[1757082975473,0.3608,110760.0,110740.0,0.1210345]
[1757082975672,0.3608,110770.0,110760.0,0.03074]
[1757082975869,0.3608,110780.0,110760.0,0.03074]
[1757082976072,0.3608,110780.0,110770.0,0.03074]
[1757082977075,0.3608,110780.0,110760.0,0.03074]
[1757082977282,0.38302,110770.0,110740.0,0.009]
[1757082977472,0.3608,110750.0,110740.0,0.03974]
[1757082977974,0.3608,110750.0,110740.0,0.005]
[1757082978170,0.7206,110750.0,110740.0,0.005]
[1757082978786,0.7206,110750.0,110730.0,0.56174211]
[1757082978977,0.7196,110750.0,110730.0,0.10171636]
[1757082979180,0.3608,110740.0,110730.0,0.10171636]
[1757082979375,0.3588,110750.0,110730.0,0.07097636]
[1757082979578,0.0903101,110720.0,110710.0,0.03074]
[1757082979781,0.4511101,110720.0,110710.0,0.10198207]
[1757082979985,0.4510966,110740.0,110730.0,0.03074]
[1757082981073,0.4510966,110740.0,110730.0,0.03174]
[1757082981786,0.4510966,110740.0,110730.0,0.03274]
[1757082982782,0.4540966,110740.0,110730.0,0.03274]
[1757082983580,0.4540966,110740.0,110730.0,0.10568853]
[1757082983783,0.0932966,110740.0,110730.0,0.03274]
[1757082984086,0.4540966,110740.0,110730.0,0.03274]
[1757082984290,0.4540966,110740.0,110730.0,0.002]
[1757082984978,0.4540966,110740.0,110730.0,0.03274]
[1757082985281,0.7288566,110740.0,110730.0,0.002]
[1757082985680,1.18888235,110740.0,110730.0,0.002]
[1757082985980,0.4540966,110740.0,110730.0,0.03274]
[1757082986186,0.4540966,110740.0,110730.0,0.10355021]
[1757082986487,0.4540966,110740.0,110730.0,0.03274]
[1757082986782,0.7040966,110740.0,110730.0,0.002]
[1757082987285,0.4540966,110740.0,110730.0,0.03274]
[1757082988679,0.003,110740.0,110730.0,1.19386825]
[1757082988884,0.3608,110780.0,110770.0,0.03074]
[1757082989082,0.3608,110790.0,110780.0,0.0902619]
[1757082989284,0.3608,110810.0,110800.0,0.0902456]
[1757082989586,0.03037596,110810.0,110800.0,1.28738561]
[1757082989784,0.01451596,110810.0,110800.0,2.35821136]
[1757082989983,0.01451596,110810.0,110800.0,2.44847628]
[1757082990290,0.01451596,110810.0,110800.0,1.99741136]
[1757082990485,0.01451596,110810.0,110800.0,1.65716576]
[1757082990686,0.37531596,110810.0,110800.0,0.10274001]
[1757082990991,0.005,110790.0,110780.0,0.03174]
[1757082991192,0.3658,110790.0,110780.0,0.001]
[1757082991487,0.6158,110790.0,110780.0,0.001]
[1757082992487,1.07582575,110790.0,110780.0,0.001]
[1757082992686,1.07082575,110790.0,110750.0,0.01089836]
[1757082992992,0.39078,110800.0,110750.0,0.46935315]
[1757082992993,0.3608,110760.0,110750.0,0.46935315]
[1757082993191,0.3598,110760.0,110740.0,1.60364575]
[1757082993377,0.3598,110760.0,110740.0,2.05474005]
[1757082993584,0.3598,110760.0,110750.0,0.55031195]
[1757082993585,0.0001,110760.0,110750.0,0.55031195]
[1757082993883,0.3609,110770.0,110760.0,0.03074]
[1757082994086,0.3608,110770.0,110760.0,0.10199224]
[1757082994288,1.07082575,110770.0,110760.0,0.0001]
[1757082994888,0.6108,110770.0,110760.0,0.0001]
[1757082995084,0.3608,110770.0,110760.0,0.0001]
[1757082995285,0.3608,110770.0,110760.0,0.46012575]
[1757082995584,0.3608,110770.0,110760.0,0.10142159]
[1757082995987,0.0001,110780.0,110760.0,2.37956574]
[1757082996187,0.3609,110780.0,110760.0,1.67848734]
[1757082996494,0.3608,110790.0,110760.0,1.67848734]
[1757082996495,0.0902539,110790.0,110780.0,0.03074]
[1757082996696,0.0902459,110800.0,110780.0,0.94182365]
[1757082996895,0.0902377,110810.0,110790.0,0.4510539]
[1757082997097,0.3608,110830.0,110800.0,0.39154]
[1757082997098,0.0902336,110820.0,110800.0,0.39154]
[1757082997398,0.0902377,110810.0,110800.0,0.39154]
[1757082997592,0.0902377,110810.0,110800.0,0.40564621]
[1757082997782,0.0902377,110810.0,110800.0,0.74589211]
[1757082998097,0.0902333,110820.0,110800.0,1.11567196]
[1757082998286,0.005,110820.0,110800.0,0.40664621]
[1757082998483,0.0902377,110810.0,110800.0,0.01510621]
[1757082998989,0.3402377,110810.0,110800.0,0.01510621]
[1757082999399,0.0902377,110810.0,110800.0,0.01510621]
[1757082999896,1.16506345,110810.0,110800.0,0.01410621]
[1757083000591,1.16406345,110810.0,110800.0,0.01510621]
[1757083000799,0.02238,110800.0,110760.0,0.43148159]
[1757083000993,0.3608,110790.0,110760.0,0.46212159]
[1757083001493,0.3608,110800.0,110770.0,0.3608]
[1757083001996,0.3608,110790.0,110770.0,0.3608]
[1757083002798,0.82382575,110810.0,110770.0,0.3608]
[1757083002993,0.002,110790.0,110770.0,0.3608]
[1757083003297,0.3628,110790.0,110770.0,0.3608]
[1757083003492,0.3618,110800.0,110760.0,1.01542564]
[1757083003797,0.001,110790.0,110780.0,0.03074]
[1757083004299,0.3618,110790.0,110780.0,0.03074]
[1757083004497,0.001,110790.0,110780.0,0.03074]
[1757083004797,0.001,110790.0,110770.0,0.004]
[1757083004993,0.001,110790.0,110770.0,0.3628]
[1757083005299,0.001,110790.0,110780.0,0.85143575]
[1757083005596,0.001,110790.0,110780.0,1.49869]
[1757083005997,0.001,110790.0,110780.0,2.04897775]
[1757083006194,0.3608,110810.0,110780.0,1.19169775]
[1757083006399,0.3608,110810.0,110800.0,0.03061]
[1757083007194,0.3608,110820.0,110800.0,0.85143575]
[1757083007401,0.3608,110830.0,110800.0,1.10143575]
[1757083007598,0.3608,110830.0,110810.0,0.39141]
[1757083007901,0.85080575,110840.0,110810.0,0.39141]
[1757083008290,0.39078,110840.0,110810.0,0.39141]
[1757083008897,0.3608,110820.0,110800.0,1.46488]
[1757083009097,0.0902363,110810.0,110800.0,1.46488]
[1757083009294,0.4510363,110810.0,110800.0,0.001]
[1757083009500,0.0902444,110800.0,110790.0,0.39141]
[1757083009697,0.0902444,110800.0,110780.0,0.39141]
[1757083009995,0.1190444,110800.0,110780.0,0.3608]
[1757083010299,0.3608,110790.0,110770.0,0.03061]
[1757083011002,0.3608,110790.0,110780.0,0.001]
[1757083011500,0.6108,110790.0,110780.0,0.001]
[1757083011706,1.07082575,110790.0,110780.0,0.001]
[1757083012899,1.07082575,110790.0,110770.0,0.002]
[1757083013105,0.0268,110770.0,110740.0,0.0001]
[1757083013404,0.3608,110750.0,110720.0,0.39141]
[1757083013706,0.3588,110740.0,110720.0,0.03061]
[1757083013904,0.82348538,110730.0,110720.0,0.07330903]
[1757083014106,0.82348538,110730.0,110710.0,0.01802947]
[1757083014402,0.3608,110720.0,110710.0,0.01802947]
[1757083014603,0.3608,110720.0,110710.0,0.09027587]
[1757083014803,0.3548,110720.0,110700.0,0.03061]
[1757083015002,0.3608,110710.0,110700.0,0.0001]
[1757083015601,0.6108,110710.0,110700.0,0.0001]
[1757083015800,1.07348538,110710.0,110700.0,0.0001]
[1757083016010,0.6108,110710.0,110700.0,0.0001]
[1757083016207,1.07348538,110710.0,110700.0,0.0001]
[1757083017008,2.16648538,110710.0,110700.0,0.0001]
[1757083017199,2.16648538,110710.0,110680.0,0.02667983]
[1757083017405,1.18428538,110690.0,110680.0,0.02667983]
[1757083017607,1.81368,110690.0,110680.0,0.02667983]
[1757083018000,0.8119342,110690.0,110680.0,0.02667983]
[1757083018207,0.8119342,110690.0,110680.0,0.27667983]
[1757083018906,0.8149342,110690.0,110680.0,0.27667983]
[1757083019209,0.8169342,110690.0,110680.0,0.27667983]
[1757083019598,0.8169342,110690.0,110680.0,0.02667983]
[1757083019812,1.52961958,110690.0,110680.0,0.02667983]
[1757083020116,2.61889958,110690.0,110680.0,0.02667983]
[1757083020306,2.61889958,110690.0,110680.0,0.00075983]
[1757083020503,0.0903563,110670.0,110640.0,2.08376988]
[1757083020700,0.4511587,110660.0,110640.0,1.99329538]
[1757083020906,0.0903668,110650.0,110630.0,3.3093236]
[1757083021105,0.4512668,110650.0,110630.0,1.5645636]
[1757083021301,0.3609,110650.0,110630.0,3.1549465]
[1757083021502,0.0001,110650.0,110640.0,0.1209849]
[1757083021709,0.0903668,110650.0,110640.0,0.03061]
[1757083021913,0.55305218,110650.0,110640.0,0.001]
[1757083022107,0.91385218,110650.0,110640.0,0.001]
[1757083022312,1.99905218,110650.0,110640.0,0.001]
[1757083022516,1.99901218,110650.0,110640.0,0.001]
[1757083022713,0.3608,110650.0,110640.0,0.001]
[1757083022915,0.0903668,110650.0,110640.0,0.28161]
[1757083023115,0.4512594,110660.0,110640.0,0.28161]
[1757083023314,0.4511619,110660.0,110640.0,0.74429538]
[1757083023618,0.451166,110650.0,110640.0,0.03161]
[1757083023809,0.453166,110650.0,110640.0,0.03161]
[1757083024110,0.453166,110650.0,110640.0,0.03061]
[1757083024415,0.001,110650.0,110640.0,0.46335925]
[1757083024621,0.001,110650.0,110640.0,1.49953001]
[1757083024810,0.001,110650.0,110640.0,2.58369001]
[1757083025013,0.0934621,110660.0,110650.0,0.0903661]
[1757083025014,0.0904617,110660.0,110650.0,0.0903661]
[1757083025207,0.3608,110670.0,110660.0,0.03061]
[1757083025513,0.4511453,110680.0,110660.0,0.49329538]
[1757083025706,0.0903498,110670.0,110660.0,0.03061]
[1757083025906,0.0903498,110670.0,110660.0,0.49329538]
[1757083026112,0.0903498,110670.0,110660.0,0.64141]
[1757083026413,0.0903498,110670.0,110660.0,0.28061]
[1757083026616,0.0903498,110670.0,110660.0,1.19445338]
[1757083026822,0.0903498,110670.0,110660.0,1.10409538]
[1757083027024,0.0903428,110680.0,110660.0,1.19445328]
[1757083027211,0.4511335,110690.0,110680.0,0.03061]
[1757083027413,0.0903491,110670.0,110660.0,0.85409538]
[1757083027713,0.0943491,110670.0,110660.0,0.85409538]
[1757083027908,0.3608,110690.0,110660.0,0.64338915]
[1757083028109,0.3608,110700.0,110690.0,0.03061]
[1757083028308,0.3608,110710.0,110700.0,0.1209348]
[1757083028522,0.3608,110720.0,110710.0,0.03061]
[1757083028721,0.090301,110730.0,110710.0,0.49329538]
[1757083028918,0.090301,110730.0,110720.0,1.54820538]
[1757083029118,0.451101,110730.0,110720.0,1.08552]
[1757083029610,0.0903166,110710.0,110700.0,0.39141]
[1757083029809,0.0903205,110710.0,110700.0,0.46268538]
[1757083030010,0.0903205,110710.0,110700.0,0.82348538]
[1757083030214,0.0903205,110710.0,110690.0,0.49329538]
[1757083030415,0.4511205,110710.0,110680.0,1.58109538]
[1757083030624,0.3608,110700.0,110680.0,1.58109538]
[1757083030815,0.3638,110710.0,110690.0,0.46268538]
[1757083031019,0.3658,110710.0,110680.0,1.47921]
[1757083031223,0.3658,110710.0,110680.0,2.01248479]
[1757083031421,0.3608,110690.0,110680.0,1.15894941]
[1757083031624,0.3608,110690.0,110680.0,1.11897]
[1757083031817,0.3628,110710.0,110680.0,1.47977]
[1757083032126,0.3608,110700.0,110680.0,1.08936]
[1757083032320,0.3608,110700.0,110680.0,0.001]
[1757083032321,0.3608,110690.0,110680.0,0.001]
[1757083032522,0.3638,110710.0,110680.0,0.1219495]
[1757083032820,0.3638,110710.0,110680.0,0.4827509]
[1757083033029,0.3618,110710.0,110680.0,0.39241]
[1757083033215,0.3916,110710.0,110680.0,1.5208052]
[1757083033521,0.3608,110690.0,110680.0,1.1600052]
[1757083033732,0.3896,110700.0,110680.0,1.1600052]
[1757083033923,0.3896,110690.0,110680.0,1.1600052]
[1757083034226,0.3896,110690.0,110680.0,1.1590052]
[1757083034626,0.3618,110690.0,110680.0,0.3482652]
[1757083034927,0.3618,110690.0,110680.0,0.0719652]
[1757083035123,0.6406,110690.0,110680.0,0.0719652]
[1757083035326,0.3618,110690.0,110680.0,0.0719652]
[1757083035622,0.3608,110720.0,110690.0,0.1046428]
[1757083035828,0.3608,110740.0,110710.0,0.01468]
[1757083036028,0.0016728,110720.0,110700.0,1.47456]
[1757083036229,0.3609,110720.0,110700.0,1.47628]
[1757083036431,0.39249,110720.0,110700.0,0.0001]
[1757083036619,0.3608,110710.0,110700.0,0.0001]
[1757083036819,0.3624727,110720.0,110700.0,0.0001]
[1757083037022,0.3608,110710.0,110700.0,0.0001]
[1757083037620,0.3624727,110720.0,110700.0,0.0001]
[1757083037926,0.004,110710.0,110700.0,0.01441]
[1757083038128,0.0943165,110710.0,110700.0,0.01441]
[1757083038327,0.0943165,110710.0,110700.0,0.37521]
[1757083038527,0.004,110710.0,110700.0,0.62521]
[1757083038725,0.004,110710.0,110700.0,1.16454482]
[1757083038926,0.0903166,110710.0,110700.0,0.71554015]
[1757083039123,0.0903166,110710.0,110700.0,0.37521]
[1757083039326,0.0903166,110710.0,110700.0,0.62521]
[1757083039527,0.0046727,110720.0,110700.0,0.62621]
[1757083039831,0.0066727,110720.0,110700.0,0.37721]
[1757083040225,0.0066727,110720.0,110700.0,0.37621]
[1757083040433,0.0046727,110720.0,110710.0,0.0223]
[1757083040633,0.0045727,110720.0,110710.0,0.0224]
[1757083041025,0.0015727,110720.0,110710.0,0.3832]
[1757083041329,0.0035727,110720.0,110710.0,0.4735168]
[1757083041728,0.0001,110730.0,110710.0,0.64246526]
[1757083041932,0.0001,110730.0,110720.0,1.08912]
[1757083042128,0.3609,110740.0,110720.0,1.08922]
[1757083042328,0.3608,110730.0,110720.0,1.08966]
[1757083042536,0.3608,110730.0,110720.0,1.11184]
[1757083042725,0.0001,110740.0,110720.0,1.47264]
[1757083042924,0.39249,110740.0,110720.0,1.08954]
[1757083043328,0.03169,110740.0,110720.0,1.08954]
[1757083043636,0.39239,110730.0,110720.0,1.08954]
[1757083044021,0.64439,110730.0,110720.0,0.0021]
[1757083044431,0.3628,110730.0,110720.0,0.0021]
[1757083044624,0.3628,110730.0,110720.0,0.0061]
[1757083044825,0.64239,110730.0,110720.0,0.0061]
[1757083045122,0.64439,110730.0,110720.0,0.0071]
[1757083045344,0.64539,110730.0,110720.0,0.0041]
[1757083045837,0.66966992,110730.0,110720.0,0.0031]
[1757083046027,0.66966992,110730.0,110720.0,0.0041]
[1757083046028,0.67266992,110730.0,110720.0,0.0041]
[1757083046534,0.42266992,110730.0,110720.0,0.0041]
[1757083046735,0.67266992,110730.0,110720.0,0.0041]
[1757083046932,0.42266992,110730.0,110720.0,0.0041]
[1757083047134,0.48138042,110730.0,110720.0,0.0041]
[1757083047637,0.12058052,110730.0,110720.0,0.0041]
[1757083047832,0.03027992,110730.0,110720.0,1.17634882]
[1757083048038,0.13651053,110760.0,110740.0,0.0902912]
[1757083048235,0.03159,110750.0,110730.0,0.3608]
[1757083048540,0.39239,110750.0,110730.0,0.3608]
[1757083048840,0.07781873,110760.0,110730.0,0.3608]
[1757083049130,0.04622873,110760.0,110740.0,0.3608]
[1757083049438,0.05122873,110760.0,110750.0,0.3608]
[1757083049938,0.05280118,110760.0,110750.0,1.45688]
[1757083050139,0.05280118,110760.0,110750.0,1.8179047]
[1757083050333,0.005,110760.0,110750.0,1.72762]
[1757083050839,0.3608,110780.0,110750.0,1.8179002]
[1757083051035,0.07781873,110790.0,110770.0,0.3608]
[1757083051342,0.04622873,110790.0,110770.0,0.3608]
[1757083051534,0.04622873,110790.0,110770.0,0.0091789]
[1757083051736,0.03159,110780.0,110760.0,0.3608]
[1757083052033,0.03159,110780.0,110760.0,0.37003644]
[1757083052235,0.39239,110780.0,110760.0,0.00923644]
[1757083052437,0.39239,110780.0,110760.0,0.3608]
[1757083052739,0.39239,110780.0,110760.0,0.3699564]
[1757083052943,0.03159,110770.0,110750.0,1.4566]
[1757083053641,0.8563543,110780.0,110750.0,1.4566]
[1757083053843,0.03159,110770.0,110750.0,1.46468035]
[1757083054039,0.49398196,110760.0,110740.0,1.09324]
[1757083054236,0.3608,110770.0,110750.0,0.01774]
[1757083054438,0.4955543,110780.0,110750.0,0.84093196]
[1757083054632,0.8563543,110780.0,110750.0,0.37854]
[1757083054943,0.49498196,110770.0,110750.0,0.3638]
[1757083055139,0.001,110770.0,110760.0,0.3608]
[1757083055845,0.0902745,110770.0,110760.0,0.3608]
[1757083056032,0.0902651,110780.0,110760.0,0.91346876]
[1757083056235,0.0902642,110780.0,110770.0,0.3608]
[1757083056537,0.0902642,110780.0,110770.0,1.45596]
[1757083056940,0.0912642,110780.0,110770.0,1.45596]
[1757083057436,0.0902642,110780.0,110770.0,1.45696]
[1757083057640,0.0912642,110780.0,110770.0,1.45696]
[1757083058337,0.001,110780.0,110770.0,2.28175056]
[1757083058533,0.13647853,110800.0,110790.0,0.1075623]
[1757083058734,0.03024873,110800.0,110790.0,1.9217223]
[1757083059035,0.00677873,110800.0,110790.0,2.47438733]
[1757083059431,0.00677873,110800.0,110790.0,2.38413503]
[1757083059645,0.00677873,110800.0,110790.0,1.92174307]
[1757083059845,0.00635019,110800.0,110790.0,2.47438733]
[1757083060138,0.00635019,110800.0,110790.0,2.38413503]
[1757083060348,0.01235019,110800.0,110790.0,2.47538733]
[1757083060538,0.006,110800.0,110790.0,2.47538733]
[1757083060944,0.005,110800.0,110790.0,2.47538733]
[1757083061140,0.005,110800.0,110790.0,1.90523307]
[1757083061338,0.005,110800.0,110790.0,1.45416]
[1757083061533,0.005,110800.0,110790.0,1.4528]
[1757083061740,0.005,110800.0,110790.0,1.092]
[1757083062037,0.005,110800.0,110790.0,1.4528]
[1757083062441,0.005,110800.0,110790.0,1.91519196]
[1757083062643,0.005,110800.0,110790.0,2.25544436]
[1757083062843,0.005,110800.0,110790.0,2.34570114]
[1757083063047,0.03159,110830.0,110800.0,0.0902414]
[1757083063242,0.03159,110830.0,110810.0,1.4494]
[1757083063544,0.03159,110830.0,110810.0,2.9494]
[1757083063741,0.45432372,110840.0,110810.0,3.04874009]
[1757083063945,0.03159,110830.0,110820.0,0.3608]
[1757083064848,0.03159,110820.0,110810.0,2.59722779]
[1757083066138,0.03159,110820.0,110810.0,1.50910779]
[1757083066342,1.10478196,110820.0,110810.0,1.5726576]
[1757083066941,0.64539,110820.0,110810.0,0.0736576]
[1757083067140,0.64739,110820.0,110810.0,0.0737576]
[1757083067649,0.03659,110820.0,110810.0,0.08308484]
[1757083067855,0.03659,110820.0,110810.0,0.3619]
[1757083068651,1.10978196,110820.0,110810.0,0.0011]
[1757083068851,0.64739,110820.0,110810.0,0.0011]
[1757083069354,0.03659,110820.0,110810.0,0.0011]
[1757083069651,0.03659,110820.0,110810.0,0.07430628]
[1757083069849,0.03659,110820.0,110810.0,0.0011]
[1757083070147,0.03616245,110820.0,110810.0,0.0011]
[1757083070551,0.03616245,110820.0,110810.0,0.3619]
[1757083070850,0.03616245,110820.0,110810.0,1.44246]
[1757083071452,0.005,110820.0,110810.0,1.44246]
[1757083071846,0.03397,110820.0,110810.0,1.44246]
[1757083073144,0.005,110820.0,110810.0,1.90485196]
[1757083073347,0.005,110820.0,110810.0,1.51558678]
[1757083074450,0.005,110820.0,110810.0,2.31463385]
[1757083074751,0.0001,110830.0,110810.0,2.40487434]